bitfinex/quotes_ETHUSD_20250519
["timestamp","ask_amount","ask_price","bid_price","bid_amount"]
[1747664697151,9.99,2438.3,2438.0,4.10171046]
[1747664697311,9.99,2438.3,2437.5,5.63455623]
[1747664697513,14.09122095,2438.3,2437.9,4.10182656]
[1747664697718,9.99,2438.3,2437.9,4.10182656]
[1747664698518,14.09128415,2438.3,2437.9,4.10182656]
[1747664699245,14.09128415,2438.3,2437.8,4.10197784]
[1747664699409,14.09128415,2438.3,2437.5,5.63454021]
[1747664699615,14.09128415,2438.3,2437.9,4.23000346]
[1747664699914,14.09128415,2438.3,2437.9,4.10177826]
[1747664699915,9.99,2438.3,2437.9,4.10177826]
[1747664700218,14.09122705,2438.3,2437.8,4.10197335]
[1747664700414,14.09122705,2438.3,2437.5,2.09545402]
[1747664700415,1.5014,2438.1,2437.6,4.10223311]
[1747664700624,1.5014,2438.1,2437.5,2.09545402]
[1747664700850,1.5014,2438.1,2437.8,4.10192767]
[1747664701248,9.465,2438.0,2437.6,0.22923577]
[1747664701555,14.64198759,2437.9,2437.6,0.22923577]
[1747664701755,10.54,2437.9,2437.3,4.10274082]
[1747664701961,9.491,2437.8,2437.4,4.23082492]
[1747664702166,9.491,2437.8,2437.5,4.10252912]
[1747664702324,10.54,2437.9,2437.8,4.10205923]
[1747664702325,9.99,2437.9,2437.8,4.10205923]
[1747664702531,19.454,2438.0,2437.5,2.07086995]
[1747664702861,19.454,2438.0,2437.8,4.10192659]
[1747664703283,19.454,2438.0,2437.6,4.23043098]
[1747664703488,0.55,2437.9,2437.6,0.12815594]
[1747664703645,0.55,2437.9,2437.7,0.12815594]
[1747664703968,4.65200439,2437.9,2437.4,4.10264422]
[1747664704168,4.10230492,2437.7,2437.1,5.75119233]
[1747664704373,9.99,2437.6,2437.2,4.23121334]
[1747664704578,9.462,2437.5,2437.3,0.13125137]
[1747664704767,19.452,2437.5,2437.3,0.13125137]
[1747664704966,19.452,2437.5,2437.3,4.23414897]
[1747664705166,19.452,2437.5,2437.4,4.23090802]
[1747664705952,19.452,2437.5,2437.4,0.12817561]
[1747664706382,19.452,2437.5,2437.4,4.4605002]
[1747664706982,23.5545641,2437.5,2437.4,0.35776779]
[1747664707302,24.1045641,2437.5,2437.4,0.35776779]
[1747664707603,4.10298288,2437.3,2437.1,0.05]
[1747664707755,4.65281878,2437.4,2437.1,0.05]
[1747664707959,21.40456389,2437.5,2437.1,4.15316136]
[1747664708371,21.40456389,2437.5,2437.2,0.12818545]
[1747664708572,21.40456389,2437.5,2437.2,4.10305862]
[1747664709012,21.40456389,2437.5,2437.1,4.15312816]
[1747664709195,21.40456389,2437.5,2437.1,0.05]
[1747664709594,21.40456389,2437.5,2437.1,4.15311293]
[1747664709796,11.94256389,2437.5,2437.2,4.10306819]
[1747664709979,9.99,2437.5,2437.3,4.10290075]
[1747664710172,9.454,2437.7,2437.3,0.56810008]
[1747664710507,1.6221,2438.2,2438.1,4.10155448]
[1747664710671,9.453,2438.3,2437.7,4.1022275]
[1747664710872,9.453,2438.3,2437.9,4.10187544]
[1747664711100,9.453,2438.3,2438.0,4.1017022]
[1747664711293,13.55422981,2438.3,2437.8,0.12816959]
[1747664711498,13.5542955,2438.3,2437.9,0.12816959]
[1747664712006,13.5542955,2438.3,2437.8,4.10203965]
[1747664712212,13.55426192,2438.3,2437.9,4.10186728]
[1747664712511,9.453,2438.3,2437.9,4.10186728]
[1747664712690,9.453,2438.3,2438.0,4.10170834]
[1747664712890,9.453,2438.3,2437.9,4.10186728]
[1747664713089,0.55,2438.1,2437.4,4.10262608]
[1747664713419,9.452,2438.0,2437.6,4.10237802]
[1747664713577,9.452,2438.0,2437.7,4.10222267]
[1747664713771,9.452,2438.0,2437.9,4.10189097]
[1747664714812,17.717,2438.7,2437.9,1.514]
[1747664715016,27.163,2438.7,2438.4,4.1009528]
[1747664715225,27.163,2438.7,2438.2,4.10136477]
[1747664715391,27.163,2438.7,2438.0,4.10157235]
[1747664715605,4.10082561,2438.6,2438.2,4.10138412]
[1747664715809,31.26361802,2438.7,2438.3,4.10120419]
[1747664716009,17.717,2438.7,2438.3,4.10120419]
[1747664716330,9.445,2438.6,2438.3,4.10112657]
[1747664716710,9.445,2438.6,2438.4,4.1009581]
[1747664716908,9.445,2438.6,2438.0,5.87346474]
[1747664716909,9.445,2438.6,2438.3,4.10115009]
[1747664717235,9.445,2438.6,2438.4,4.10095192]
[1747664717529,9.443,2438.7,2438.6,4.10061205]
[1747664718438,9.76332353,2438.8,2438.7,4.10054537]
[1747664718439,9.452,2438.8,2438.7,4.10054537]
[1747664718927,9.452,2438.8,2438.4,4.10098503]
[1747664719225,9.452,2438.8,2438.0,1.77176206]
[1747664719226,9.452,2438.8,2438.2,4.10128841]
[1747664719399,13.55244531,2438.8,2438.4,4.10103192]
[1747664719599,9.452,2438.8,2438.3,4.10114519]
[1747664720001,9.75294452,2438.8,2438.3,4.10114519]
[1747664720529,9.99,2438.7,2438.3,4.10114519]
[1747664720937,9.99,2438.7,2438.1,1.5044]
[1747664721234,9.99,2438.7,2438.4,4.10090832]
[1747664721810,1.6343,2438.6,2438.1,1.5044]
[1747664722010,4.10117996,2438.4,2437.9,4.10177716]
[1747664722220,14.09117996,2438.4,2437.9,4.10174178]
[1747664722438,14.09117996,2438.4,2438.0,4.10171039]
[1747664723235,9.99,2438.4,2438.2,4.10136032]
[1747664723437,9.99,2438.4,2437.7,1.6394]
[1747664723634,9.99,2438.4,2437.8,0.70230005]
[1747664723826,4.10131193,2438.3,2437.8,0.12813672]
[1747664724009,4.10148507,2438.2,2437.8,4.10204463]
[1747664724210,4.10147787,2438.2,2437.8,4.10204205]
[1747664724416,13.5513601,2438.3,2437.8,4.10204205]
[1747664724933,4.10153589,2438.2,2437.7,4.10220501]
[1747664725434,4.10153589,2438.2,2437.5,1.5984]
[1747664725435,9.99,2438.2,2437.5,1.5984]
[1747664725735,9.99,2438.2,2437.4,1.00505953]
[1747664725736,1.6102,2438.1,2437.7,4.10213336]
[1747664725905,9.429,2438.0,2437.7,4.10213336]
[1747664726102,9.429,2438.0,2437.6,4.10229637]
[1747664726306,9.429,2438.0,2437.5,4.10241586]
[1747664726307,13.53080651,2438.0,2437.5,4.10241586]
[1747664726634,9.99,2437.9,2437.6,0.12815817]
[1747664726850,9.99,2437.9,2437.6,4.23052088]
[1747664727203,9.99,2437.9,2437.6,4.10236271]
[1747664727898,9.99,2437.9,2437.5,4.10249216]
[1747664728848,14.09199738,2437.9,2437.4,4.10264448]
[1747664729049,14.09199738,2437.9,2437.3,4.10283348]
[1747664729348,4.10302982,2437.3,2437.1,0.05]
[1747664729535,9.423,2437.2,2437.1,0.05]
[1747664729856,9.423,2437.2,2437.1,4.15323745]
[1747664730659,9.423,2437.2,2437.1,4.9788982]
[1747664730975,9.423,2437.2,2437.1,6.75319438]
[1747664731125,9.99,2437.5,2437.4,4.10273241]
[1747664731528,9.99,2437.5,2437.3,4.10289681]
[1747664731754,9.99,2437.5,2437.4,4.10273241]
[1747664732523,9.99,2437.7,2437.3,4.10289681]
[1747664732728,9.419,2437.6,2437.3,4.10289681]
[1747664732930,9.419,2437.6,2437.4,4.10262007]
[1747664733131,9.419,2437.6,2437.5,4.1025641]
[1747664733469,9.419,2437.6,2437.1,1.5951]
[1747664733675,9.419,2437.6,2437.4,4.1025942]
[1747664734175,9.99,2437.7,2437.6,4.10239579]
[1747664734423,9.451,2438.3,2438.2,4.10138626]
[1747664734558,9.417,2438.4,2438.3,4.10121806]
[1747664735078,9.416,2438.6,2438.2,4.10138626]
[1747664735233,9.416,2438.6,2438.5,4.10088168]
[1747664735435,9.451,2438.8,2438.4,4.10104463]
[1747664735630,9.415,2438.7,2438.4,4.10104463]
[1747664736061,4.10095836,2438.5,2437.9,4.10189097]
[1747664736273,4.10115107,2438.4,2438.0,4.10171941]
[1747664736436,1.54,2438.6,2437.8,1.57]
[1747664736637,4.10095729,2438.5,2438.1,0.12812238]
[1747664736846,4.65114724,2438.4,2437.9,4.10181404]
[1747664737131,1.6483,2438.1,2437.3,1.5086]
[1747664737339,4.10209594,2437.8,2437.4,4.23077516]
[1747664737549,4.10196712,2437.9,2437.5,4.10256]
[1747664737748,13.51279427,2438.0,2437.5,4.10256]
[1747664737950,13.51273367,2438.0,2437.4,4.1026798]
[1747664738173,9.411,2438.0,2437.8,4.10200201]
[1747664738558,9.409,2437.9,2437.7,4.10213179]
[1747664738964,9.409,2437.9,2437.4,5.07405466]
[1747664739201,13.51097747,2437.9,2437.4,4.10262382]
[1747664739397,13.51097747,2437.9,2437.5,4.10254932]
[1747664739600,4.6520876,2437.8,2437.2,4.10303748]
[1747664739805,5.61070771,2437.7,2437.2,4.10303748]
[1747664740169,4.10244274,2437.6,2437.1,0.05]
[1747664740379,4.10244274,2437.6,2437.2,4.1030546]
[1747664740601,4.10244274,2437.6,2437.1,0.05]
[1747664740602,1.5084,2437.7,2437.1,0.05]
[1747664740817,1.5084,2437.7,2437.4,4.10273039]
[1747664741024,1.5084,2437.7,2437.1,0.61675854]
[1747664741321,1.5084,2437.7,2437.3,4.10277086]
[1747664741513,15.60071054,2437.7,2437.3,4.10289428]
[1747664741712,15.60071054,2437.7,2437.2,4.10293752]
[1747664741915,15.60071054,2437.7,2437.1,4.71993358]
[1747664741916,4.10239579,2437.6,2437.1,4.15320661]
[1747664742098,9.99,2437.6,2437.1,0.05]
[1747664742417,14.09249405,2437.6,2437.1,4.15322764]
[1747664742719,4.10256803,2437.5,2437.1,0.05]
[1747664742926,9.404,2437.4,2437.1,0.05]
[1747664743126,9.404,2437.4,2437.2,4.10296784]
[1747664743291,9.404,2437.4,2437.3,4.10290075]
[1747664743825,9.404,2437.4,2437.1,4.15316105]
[1747664744328,9.404,2437.4,2437.2,4.10306654]
[1747664745123,9.404,2437.4,2437.3,4.10290075]
[1747664745291,9.404,2437.4,2437.2,4.1030266]
[1747664745686,9.404,2437.4,2437.1,0.05]
[1747664746218,9.404,2437.4,2437.1,4.15321996]
[1747664746718,9.404,2437.4,2437.1,0.05]
[1747664746942,4.10264897,2437.5,2437.1,4.15321969]
[1747664747108,9.398,2437.3,2437.2,4.10296307]
[1747664748230,9.398,2437.3,2437.1,0.05]
[1747664748633,9.398,2437.3,2437.1,4.15322472]
[1747664748837,9.398,2437.3,2437.1,0.05]
[1747664749036,9.398,2437.3,2437.2,4.10306909]
[1747664749244,9.398,2437.3,2437.1,4.15316171]
[1747664749457,9.398,2437.3,2437.2,4.10306909]
[1747664750008,9.398,2437.3,2437.1,0.05]
[1747664750221,6.22236909,2437.2,2437.1,0.05]
[1747664750425,2.1193,2437.2,2437.1,0.05]
[1747664750619,5.67236909,2437.2,2437.1,0.05]
[1747664751322,6.22236909,2437.2,2437.1,0.05]
[1747664751522,16.21236909,2437.2,2437.1,0.05]
[1747664751840,24.21236909,2437.2,2437.1,0.05]
[1747664753374,24.23706909,2437.2,2437.1,0.05]
[1747664755000,24.23706909,2437.2,2436.1,0.05]
[1747664755001,14.2733533,2436.2,2436.1,0.05]
[1747664755296,38.9536,2436.2,2436.1,0.05]
[1747664755459,30.4036,2436.2,2436.1,0.05]
[1747664756387,35.0583533,2436.2,2436.1,0.05]
[1747664756792,30.9536,2436.2,2436.1,0.05]
[1747664756968,35.0583533,2436.2,2436.1,0.05]
[1747664758048,43.0583533,2436.2,2436.1,0.05]
[1747664758652,47.4183119,2436.2,2436.1,0.05]
[1747664759175,4.10612158,2435.4,2435.1,0.05]
[1747664759381,9.382,2435.3,2435.1,0.05]
[1747664759556,4.65643889,2435.2,2435.1,0.05]
[1747664760145,14.17503889,2435.2,2435.1,0.05]
[1747664762170,32.41703889,2435.2,2435.1,0.05]
[1747664762371,32.96703889,2435.2,2435.1,0.05]
[1747664763392,37.32699749,2435.2,2435.1,0.05]
[1747664763688,37.32499749,2435.2,2435.1,0.05]
[1747664764381,10.0686,2435.2,2435.1,0.05]
[1747664764588,20.3116,2435.2,2435.1,0.05]
[1747664764790,18.793,2435.2,2435.1,4.10660753]
[1747664764988,9.378,2435.4,2435.3,4.10619115]
[1747664765292,1.5043,2435.0,2433.1,0.71666667]
[1747664765452,0.55,2433.4,2433.1,0.71666667]
[1747664765653,9.377,2433.3,2433.1,0.71666667]
[1747664765965,9.377,2433.3,2433.2,5.66071423]
[1747664766288,9.377,2433.6,2433.2,2.18863809]
[1747664766445,9.377,2433.6,2433.5,4.10922222]
[1747664766650,17.73,2433.9,2433.2,2.18863809]
[1747664766851,18.795,2434.0,2433.8,4.10878163]
[1747664767051,18.795,2434.0,2433.7,4.1089184]
[1747664767252,18.795,2434.0,2433.6,4.10905447]
[1747664767493,0.55,2433.9,2433.3,1.11249084]
[1747664767691,19.09656695,2434.0,2433.6,4.1089882]
[1747664767869,19.09656695,2434.0,2433.7,4.10893593]
[1747664768275,19.09656695,2434.0,2433.6,4.1090569]
[1747664768620,8.55,2433.9,2433.2,1.5509]
[1747664768910,12.65865496,2433.9,2433.4,4.10945746]
[1747664769079,8.0,2433.9,2433.5,4.1091728]
[1747664769492,0.55,2433.8,2433.2,1.5509]
[1747664769693,0.55,2433.8,2433.4,4.10943753]
[1747664769894,0.55,2433.8,2433.3,4.10955922]
[1747664770091,8.0,2433.9,2433.3,4.10951869]
[1747664770278,4.65890664,2433.8,2433.3,4.10952851]
[1747664770475,0.55,2433.8,2433.2,1.5509]
[1747664770679,0.55,2433.6,2433.2,5.66058877]
[1747664770879,0.55,2433.6,2433.2,5.66058117]
[1747664771281,8.0,2433.9,2433.2,1.5509]
[1747664771611,23.40880304,2433.8,2433.3,4.10955918]
[1747664772220,4.65880304,2433.8,2433.3,4.10955918]
[1747664772423,9.374,2433.7,2433.3,4.10955918]
[1747664772918,9.375,2433.6,2433.3,4.1095767]
[1747664773317,8.0,2433.9,2433.2,5.66070348]
[1747664773318,0.30156695,2434.0,2433.2,1.5509]
[1747664773618,1.6246,2434.2,2433.2,1.5509]
[1747664773619,22.85964517,2433.9,2433.4,4.10936265]
[1747664774616,12.41603595,2434.0,2433.5,4.10927085]
[1747664774817,12.41603595,2434.0,2433.2,1.5509]
[1747664774818,0.30747806,2434.0,2433.3,4.10964533]
[1747664774982,9.373,2433.9,2433.3,4.10964533]
[1747664775183,9.373,2433.9,2433.7,5.72540956]
[1747664775610,0.30818667,2434.0,2433.7,5.72540956]
[1747664775796,9.373,2434.0,2433.7,5.72540956]
[1747664776286,4.10821111,2434.2,2433.7,5.72540956]
[1747664776785,9.99,2434.3,2434.1,4.10819763]
[1747664776987,19.362,2434.4,2434.1,4.10822557]
[1747664777498,19.362,2434.4,2434.2,4.10812504]
[1747664777698,19.66639711,2434.4,2434.1,4.10821664]
[1747664777918,19.66639711,2434.4,2434.1,4.10815899]
[1747664778220,19.66639711,2434.4,2434.1,4.10815136]
[1747664778391,19.66639711,2434.4,2434.0,4.10844773]
[1747664778586,19.66639711,2434.4,2434.0,4.10846343]
[1747664778787,10.29439711,2434.4,2434.1,4.10828766]
[1747664779002,10.29439711,2434.4,2434.0,4.10837324]
[1747664779611,10.29439711,2434.4,2434.2,4.108094]
[1747664779817,10.29439711,2434.4,2434.2,5.659894]
[1747664780016,10.29439711,2434.4,2434.2,1.5518]
[1747664780214,14.40220909,2434.4,2434.0,4.10844374]
[1747664780484,10.29439711,2434.4,2433.9,4.10856757]
[1747664780688,14.40225423,2434.4,2434.0,4.10846298]
[1747664781088,10.29439711,2434.4,2434.0,4.10833077]
[1747664781287,10.29439711,2434.4,2433.2,13.47672836]
[1747664781288,4.10845235,2434.1,2433.2,1.5128]
[1747664781488,0.59106815,2434.3,2433.3,4.10957809]
[1747664781489,0.55,2433.9,2433.3,4.10957809]
[1747664781736,4.10899316,2433.7,2433.3,4.10957809]
[1747664781900,4.10897013,2433.7,2433.3,4.10957809]
[1747664782096,0.55,2433.9,2433.3,4.10964533]
[1747664782329,0.55,2433.9,2433.1,0.71666667]
[1747664782330,5.9885586,2433.7,2433.1,0.71666667]
[1747664782499,4.11015207,2433.0,2432.0,1.88746175]
[1747664782701,5.77430398,2432.2,2432.0,0.37106175]
[1747664782900,32.10737213,2432.2,2432.0,0.37106175]
[1747664783104,32.06630398,2432.2,2432.0,0.37106175]
[1747664783318,38.44911685,2432.2,2432.0,0.37106175]
[1747664783647,42.56062083,2432.2,2432.0,0.37106175]
[1747664783848,43.11062083,2432.2,2431.4,5.74586365]
[1747664784048,51.11062083,2432.2,2431.5,4.11266199]
[1747664784251,51.11062083,2432.2,2431.4,1.6331]
[1747664784452,51.11062083,2432.2,2431.4,5.74587132]
[1747664784660,51.11062083,2432.2,2431.1,4.1632192]
[1747664784953,51.11062083,2432.2,2431.2,4.1130581]
[1747664785255,51.11062083,2432.2,2431.1,4.1632192]
[1747664785256,51.11062083,2432.2,2431.3,4.11301705]
[1747664785555,51.11062083,2432.2,2431.2,4.113111]
[1747664785946,51.11062083,2432.2,2431.3,4.11297192]
[1747664786113,51.11062083,2432.2,2431.4,4.11271487]
[1747664786509,51.11062083,2432.2,2431.4,4.11283695]
[1747664786714,51.11062083,2432.2,2431.5,4.11266155]
[1747664786915,37.33631685,2432.2,2431.7,5.71762629]
[1747664787116,0.30331685,2432.2,2432.0,4.11178852]
[1747664787442,20.363,2432.5,2432.0,4.11178852]
[1747664787636,9.68411553,2432.5,2431.7,1.6053]
[1747664787812,9.364,2432.4,2432.2,4.11140999]
[1747664788214,9.364,2432.4,2432.3,4.11133495]
[1747664788431,19.3423,2432.9,2432.4,4.11109765]
[1747664788642,18.745,2432.8,2432.4,4.11109765]
[1747664788831,18.745,2432.8,2432.3,5.65264804]
[1747664789038,19.04743327,2432.8,2432.3,1.5414]
[1747664789382,0.55,2432.7,2432.3,5.65270013]
[1747664789526,23.1579432,2432.8,2432.3,5.65270013]
[1747664789527,19.04743327,2432.8,2432.4,4.11104249]
[1747664789727,19.04743327,2432.8,2432.4,4.11114936]
[1747664789926,19.04743327,2432.8,2432.4,4.11114683]
[1747664790169,4.11018414,2433.0,2432.3,1.5414]
[1747664790170,22.85381594,2433.2,2432.3,1.5414]
[1747664790326,4.11035287,2432.9,2432.3,1.5414]
[1747664790531,4.11076587,2432.7,2432.1,4.16157466]
[1747664790989,13.47193532,2432.6,2432.1,0.05]
[1747664791296,9.361,2432.6,2432.1,4.16165911]
[1747664791591,4.66107699,2432.5,2432.1,0.05]
[1747664791777,4.11129152,2432.4,2432.1,0.05]
[1747664791962,12.66109043,2432.5,2432.1,0.05]
[1747664792166,8.55,2432.5,2432.1,0.05]
[1747664792363,4.11150398,2432.2,2432.1,0.05]
[1747664792665,21.49450398,2432.2,2432.1,0.05]
[1747664792868,17.383,2432.2,2432.1,0.05]
[1747664793165,21.49450398,2432.2,2432.1,0.05]
[1747664793994,22.04450398,2432.2,2432.1,0.05]
[1747664795397,23.68350398,2432.2,2432.1,0.05]
[1747664796598,14.30050398,2432.2,2432.1,0.05]
[1747664796797,33.04350398,2432.2,2432.1,0.05]
[1747664797104,33.04250398,2432.2,2432.1,0.05]
[1747664798480,14.30050398,2432.2,2432.1,0.05]
[1747664798711,17.356,2432.2,2432.1,0.05]
[1747664799296,9.356,2432.2,2432.1,0.05]
[1747664800577,9.354,2432.2,2432.1,0.05]
[1747664800781,9.354,2432.3,2432.1,0.05]
[1747664801003,9.354,2432.3,2432.1,4.16159339]
[1747664801220,9.354,2432.3,2432.2,4.11150398]
[1747664801719,8.0,2432.7,2432.5,4.11095808]
[1747664801916,9.353,2432.6,2432.5,4.11095808]
[1747664802323,0.30912386,2432.8,2432.6,4.11082792]
[1747664802492,9.353,2432.8,2432.7,4.11065893]
[1747664802699,9.662381,2432.8,2432.4,1.6309]
[1747664802925,1.84395505,2433.7,2432.9,4.1102966]
[1747664803087,9.352,2433.2,2432.9,4.1102966]
[1747664803288,9.352,2433.2,2432.9,4.11022186]
[1747664803507,9.352,2433.2,2432.4,2.2051403]
[1747664803705,13.46186234,2433.2,2432.4,2.2051403]
[1747664804041,0.59106815,2433.1,2432.4,1.6309]
[1747664804337,4.11040243,2432.9,2432.4,1.6309]
[1747664804536,4.11039982,2432.9,2432.4,5.74198071]
[1747664804712,13.46339982,2432.9,2432.5,4.11099443]
[1747664804919,13.46339694,2432.9,2432.4,4.11114968]
[1747664805305,13.77216134,2432.9,2432.4,4.11114968]
[1747664805620,9.6617644,2432.9,2432.1,5.7575526]
[1747664805820,13.77217974,2432.9,2432.4,4.11109611]
[1747664806017,0.55,2432.8,2432.2,4.11143469]
[1747664806342,4.11090046,2432.6,2432.1,1.6459]
[1747664806645,12.11109941,2432.5,2432.1,1.6459]
[1747664806804,14.25572324,2432.6,2432.1,4.1616616]
[1747664807000,10.1448,2432.6,2432.2,4.1114831]
[1747664807204,4.1110022,2432.5,2432.1,0.05]
[1747664807405,10.1448,2432.6,2432.1,0.05]
[1747664807741,4.1111081,2432.5,2432.1,0.05]
[1747664807922,14.25569568,2432.6,2432.1,4.16165241]
[1747664808335,4.11142883,2432.3,2432.1,0.05]
[1747664808558,9.346,2432.2,2432.1,4.16167303]
[1747664809141,9.346,2432.2,2432.1,0.05]
[1747664810143,9.346,2432.2,2432.1,4.16167303]
[1747664811977,9.346,2432.2,2432.1,6.62877168]
[1747664812141,0.3087644,2432.9,2432.1,2.64862054]
[1747664812327,9.342,2432.7,2432.5,4.1109645]
[1747664812668,9.342,2432.7,2432.2,0.35845441]
[1747664812828,4.1109245,2432.6,2432.3,0.12844731]
[1747664813030,0.55,2432.5,2432.3,0.12844731]
[1747664813276,4.66100952,2432.5,2432.1,4.29308797]
[1747664813786,4.11141817,2432.3,2432.1,0.18152189]
[1747664814075,9.341,2432.2,2432.1,0.05]
[1747664814568,9.341,2432.2,2432.1,4.16167303]
[1747664815327,9.341,2432.2,2432.1,0.05]
[1747664815846,9.341,2432.2,2432.1,4.16167303]
[1747664816255,9.341,2432.2,2432.1,0.05]
[1747664817369,9.341,2432.2,2432.1,4.16167303]
[1747664818558,9.353,2432.6,2432.1,1.03486072]
[1747664818864,9.353,2432.6,2432.5,4.11084586]
[1747664819165,18.688,2432.6,2432.5,4.11099691]
[1747664819370,18.688,2432.6,2432.4,5.75969842]
[1747664819570,18.688,2432.6,2432.5,4.11099691]
[1747664820446,18.688,2432.6,2432.4,5.75974297]
[1747664820651,18.688,2432.6,2432.5,4.11099691]
[1747664820849,18.688,2432.6,2432.2,1.5808]
[1747664821042,18.688,2432.6,2432.4,4.1110569]
[1747664821244,0.55,2432.5,2432.1,0.05]
[1747664821454,4.66105144,2432.5,2432.1,4.1616637]
[1747664821654,0.55,2432.5,2432.2,4.11148772]
[1747664821936,18.688,2432.6,2432.1,4.16162574]
[1747664822132,18.688,2432.6,2432.3,4.11127196]
[1747664822377,18.684,2432.5,2432.4,4.11116592]
[1747664822538,9.331,2432.5,2432.4,4.11116592]
[1747664822734,9.353,2432.6,2432.5,4.11099691]
[1747664823076,18.684,2432.6,2432.3,4.11125893]
[1747664823282,18.684,2432.6,2432.4,4.11110425]
[1747664823580,18.684,2432.6,2432.5,4.11099691]
[1747664823788,18.683,2432.6,2432.5,4.11099691]
[1747664824861,0.30866594,2432.9,2432.8,4.11048997]
[1747664825073,1.6147,2433.7,2432.6,1.6462]
[1747664825371,1.6147,2433.7,2433.3,4.10956983]
[1747664825372,18.681,2433.6,2433.3,4.10956983]
[1747664825972,0.55,2433.4,2432.7,1.6462]
[1747664826135,1.6147,2433.2,2432.8,0.12840927]
[1747664826339,0.55,2433.0,2432.8,0.12840927]
[1747664826540,0.55,2433.0,2432.6,4.11075557]
[1747664826800,0.55,2432.8,2432.1,0.05]
[1747664826954,4.11148737,2432.3,2432.1,0.05]
[1747664827281,9.91606815,2432.2,2432.1,0.05]
[1747664827577,9.325,2432.2,2432.1,4.16167303]
[1747664827763,9.325,2432.2,2432.1,0.05]
[1747664827966,14.10049989,2432.8,2432.4,4.11111032]
[1747664827967,9.99,2432.8,2432.4,4.11111032]
[1747664828143,9.324,2432.8,2432.4,4.11106979]
[1747664828578,9.324,2432.8,2432.5,4.11098245]
[1747664828820,9.324,2432.8,2432.2,1.6072]
[1747664828821,9.324,2432.8,2432.7,4.11065893]
[1747664829123,9.324,2432.8,2432.4,4.11102817]
[1747664829277,9.324,2432.8,2432.6,4.11080562]
[1747664829596,9.324,2432.8,2432.5,4.11091576]
[1747664829774,9.324,2432.8,2432.5,4.11090015]
[1747664829975,9.324,2432.8,2432.2,1.6072]
[1747664830174,9.324,2432.8,2432.6,4.11073382]
[1747664831074,9.324,2432.8,2432.2,1.6072]
[1747664831272,4.66074074,2432.7,2432.1,0.05]
[1747664831512,0.55,2432.7,2432.3,4.11120643]
[1747664831898,4.66070014,2432.7,2432.2,0.35856953]
[1747664832231,4.66117711,2432.4,2432.2,0.23012565]
[1747664832515,19.191,2432.3,2432.2,0.23012565]
[1747664832720,29.181,2432.3,2432.1,0.05]
[1747664833009,29.181,2432.3,2432.1,4.16160389]
[1747664833403,29.181,2432.3,2432.1,0.05]
[1747664833604,28.631,2432.3,2432.1,0.05]
[1747664834119,28.631,2432.3,2432.2,4.11150398]
[1747664834687,19.311,2432.3,2432.2,4.11150398]
[1747664835017,9.99,2432.3,2432.2,4.11150398]
[1747664835208,19.307,2432.3,2432.2,5.70420398]
[1747664835809,9.317,2432.3,2432.2,1.5927]
[1747664836008,9.317,2432.3,2432.2,4.11150398]
[1747664836213,9.317,2432.3,2432.1,4.16165266]
[1747664836414,9.317,2432.3,2432.2,4.11150398]
[1747664836885,9.317,2432.3,2432.1,0.05]
[1747664837285,9.317,2432.3,2432.2,4.11150398]
[1747664838239,9.317,2432.3,2432.1,0.05]
[1747664838240,9.317,2432.3,2432.1,4.16157495]
[1747664838758,9.317,2432.3,2432.2,4.11150398]
[1747664839107,9.62928931,2432.3,2432.2,4.11150398]
[1747664839552,9.62928931,2432.3,2432.1,0.05]
[1747664840413,9.62928931,2432.3,2432.1,4.16166837]
[1747664840741,9.62928931,2432.3,2432.1,4.16167204]
[1747664840943,9.62928931,2432.3,2432.1,0.05]
[1747664841147,8.04630921,2432.2,2432.1,0.05]
[1747664841337,8.55524106,2432.2,2432.1,0.05]
[1747664841506,4.66150398,2432.2,2432.1,0.05]
[1747664841705,11.13728931,2432.3,2432.1,0.05]
[1747664841922,9.62928931,2432.3,2432.1,0.05]
[1747664842340,13.74069768,2432.3,2432.1,0.05]
[1747664842714,4.66150398,2432.2,2432.1,0.05]
[1747664842916,6.27420398,2432.2,2432.1,0.05]
[1747664843117,18.20900921,2432.2,2432.1,0.05]
[1747664843330,18.16794106,2432.2,2432.1,0.05]
[1747664843542,14.27420398,2432.2,2432.1,0.05]
[1747664845248,9.6127,2432.2,2432.1,0.05]
[1747664845419,8.0,2432.2,2432.1,0.05]
[1747664845814,9.62928931,2432.3,2432.1,0.05]
[1747664846251,13.74073733,2432.3,2432.1,0.05]
[1747664846454,4.11150398,2432.2,2432.1,0.05]
[1747664846654,13.74069273,2432.3,2432.1,0.05]
[1747664846862,4.11150398,2432.2,2432.1,0.05]
[1747664847314,13.74069321,2432.3,2432.1,0.05]
[1747664848165,4.66150398,2432.2,2432.1,0.05]
[1747664848679,12.11150398,2432.2,2432.1,0.05]
[1747664850140,16.55524106,2432.2,2432.1,0.05]
[1747664850317,18.14394106,2432.2,2432.1,0.05]
[1747664850517,18.14394106,2432.2,2431.1,0.05]
[1747664850518,0.55,2431.9,2431.1,0.05]
[1747664850830,5.64224263,2431.3,2431.1,0.05]
[1747664851035,19.29,2431.2,2431.1,0.05]
[1747664852835,23.40319512,2431.2,2431.1,0.05]
[1747664853339,19.29,2431.2,2431.1,0.05]
[1747664853975,23.40319512,2431.2,2431.1,0.05]
[1747664854795,23.95319512,2431.2,2431.1,0.05]
[1747664855138,31.95319512,2431.2,2431.1,0.05]
[1747664856181,21.96319512,2431.2,2431.1,0.05]
[1747664857548,17.3,2431.2,2431.1,0.05]
[1747664857973,26.619,2431.2,2431.1,0.05]
[1747664858449,30.73219512,2431.2,2431.1,0.05]
[1747664859162,31.28219512,2431.2,2431.1,0.05]
[1747664859803,26.619,2431.2,2431.1,0.05]
[1747664860097,31.28219512,2431.2,2431.1,0.05]
[1747664862464,42.82159512,2431.2,2431.1,0.05]